[Event "Titled Tuesday Blitz May 16 Late 2023"]
[White "Remizov, Yaroslav"]
[Black "Lazavik, Denis"]
[WhiteFideId "34134015"]
[BlackFideId "13515110"]
[WhiteElo "2400"]
[BlackElo "2560"]
[Result "1-0"]
[Round "10"]
[TimeControl "180+2"]
[Date "2023.05.16"]
[WhiteClock "0:00:17"]
[BlackClock "0:00:00"]

1. e4 {[%clk 0:02:59]}  c5 {[%clk 0:02:59]} 2. Nf3 {[%clk 0:03:00]}  e6 {[%clk 0:03:00]} 3. d4 {[%clk 0:02:59]}  cxd4 {[%clk 0:03:00]} 4. Nxd4 {[%clk 0:03:00]}  Nc6 {[%clk 0:03:01]} 5. g3 {[%clk 0:02:45]}  d5 {[%clk 0:02:45]} 6. Bg2 {[%clk 0:02:42]}  dxe4 {[%clk 0:02:36]} 7. Nxc6 {[%clk 0:02:41]}  Qxd1+ {[%clk 0:02:36]} 8. Kxd1 {[%clk 0:02:42]}  bxc6 {[%clk 0:02:37]} 9. Bxe4 {[%clk 0:02:42]}  Bb7 {[%clk 0:02:38]} 10. Ke2 {[%clk 0:02:23]}  Nf6 {[%clk 0:02:37]} 11. Bd3 {[%clk 0:02:20]}  O-O-O {[%clk 0:02:31]} 12. Nd2 {[%clk 0:02:16]}  Be7 {[%clk 0:02:28]} 13. Nc4 {[%clk 0:02:13]}  Nd5 {[%clk 0:02:22]} 14. a3 {[%clk 0:02:03]}  c5 {[%clk 0:02:20]} 15. Rd1 {[%clk 0:02:01]}  f6 {[%clk 0:02:09]} 16. Na5 {[%clk 0:01:54]}  Ba8 {[%clk 0:02:07]} 17. Bd2 {[%clk 0:01:40]}  g5 {[%clk 0:02:02]} 18. b4 {[%clk 0:01:35]}  cxb4 {[%clk 0:01:52]} 19. axb4 {[%clk 0:01:33]}  Bxb4 {[%clk 0:01:50]} 20. Nc4 {[%clk 0:01:31]}  Bxd2 {[%clk 0:00:51]} 21. Rxa7 {[%clk 0:01:28]}  Kb8 {[%clk 0:00:35]} 22. Rda1 {[%clk 0:01:23]}  Bb7 {[%clk 0:00:35]} 23. Kxd2 {[%clk 0:01:16]}  Rd7 {[%clk 0:00:35]} 24. R7a3 {[%clk 0:01:10]}  Kc7 {[%clk 0:00:28]} 25. Na5 {[%clk 0:01:05]}  Bc8 {[%clk 0:00:20]} 26. Bb5 {[%clk 0:00:55]}  Rdd8 {[%clk 0:00:12]} 27. c4 {[%clk 0:00:50]}  Ne7+ {[%clk 0:00:10]} 28. Kc3 {[%clk 0:00:44]}  Rd6 {[%clk 0:00:10]} 29. Nb3 {[%clk 0:00:43]}  Kd8 {[%clk 0:00:06]} 30. Ra8 {[%clk 0:00:35]}  Kc7 {[%clk 0:00:03]} 31. R1a7+ {[%clk 0:00:31]}  Kd8 {[%clk 0:00:04]} 32. c5 {[%clk 0:00:19]}  Rd5 {[%clk 0:00:03]} 33. Bc4 {[%clk 0:00:19]}  Rd1 {[%clk 0:00:03]} 34. Bxe6 {[%clk 0:00:19]}  Re8 {[%clk 0:00:02]} 35. Nd4 {[%clk 0:00:19]}  Rxd4 {[%clk 0:00:01]} 36. Bxc8 {[%clk 0:00:18]}  Rd5 {[%clk 0:00:00]} 37. Be6+ {[%clk 0:00:17]} 1-0


[Site "https://www.chess.com"]

[Event "Titled Tuesday Blitz May 16 Late 2023"]
[White "Deac, Bogdan-Daniel"]
[Black "Mahdavi, Reza"]
[WhiteFideId "1226380"]
[BlackFideId "12595926"]
[WhiteElo "2649"]
[BlackElo "2352"]
[Result "0-1"]
[Round "10"]
[TimeControl "180+2"]
[Date "2023.05.16"]
[WhiteClock "0:00:23"]
[BlackClock "0:01:18"]

1. d4 {[%clk 0:03:00]}  Nf6 {[%clk 0:02:59]} 2. Nf3 {[%clk 0:02:59]}  g6 {[%clk 0:02:59]} 3. Nbd2 {[%clk 0:02:59]}  d5 {[%clk 0:02:59]} 4. Nb3 {[%clk 0:02:59]}  Bg7 {[%clk 0:02:59]} 5. Bf4 {[%clk 0:03:00]}  O-O {[%clk 0:02:57]} 6. e3 {[%clk 0:03:00]}  b6 {[%clk 0:02:57]} 7. h3 {[%clk 0:02:59]}  c5 {[%clk 0:02:56]} 8. c3 {[%clk 0:02:57]}  Nc6 {[%clk 0:02:53]} 9. Bb5 {[%clk 0:02:50]}  Bd7 {[%clk 0:02:48]} 10. dxc5 {[%clk 0:02:50]}  Ne4 {[%clk 0:02:14]} 11. Qxd5 {[%clk 0:02:31]}  Nxc3 {[%clk 0:02:04]} 12. bxc3 {[%clk 0:02:30]}  Bxc3+ {[%clk 0:02:04]} 13. Ke2 {[%clk 0:02:23]}  Nd4+ {[%clk 0:01:58]} 14. Nfxd4 {[%clk 0:00:42]}  Bxb5+ {[%clk 0:01:58]} 15. Nxb5 {[%clk 0:00:43]}  Qxd5 {[%clk 0:01:56]} 16. Nxc3 {[%clk 0:00:43]}  Qc4+ {[%clk 0:01:53]} 17. Kd2 {[%clk 0:00:43]}  Rfd8+ {[%clk 0:01:51]} 18. Kc2 {[%clk 0:00:42]}  Rd3 {[%clk 0:01:47]} 19. Be5 {[%clk 0:00:42]}  f6 {[%clk 0:01:47]} 20. Rad1 {[%clk 0:00:41]}  Rxd1 {[%clk 0:01:43]} 21. Rxd1 {[%clk 0:00:42]}  fxe5 {[%clk 0:01:44]} 22. cxb6 {[%clk 0:00:41]}  axb6 {[%clk 0:01:44]} 23. Kb2 {[%clk 0:00:42]}  Rc8 {[%clk 0:01:40]} 24. Rc1 {[%clk 0:00:39]}  Qd3 {[%clk 0:01:39]} 25. Rc2 {[%clk 0:00:37]}  b5 {[%clk 0:01:37]} 26. a3 {[%clk 0:00:36]}  Rc4 {[%clk 0:01:31]} 27. Nc1 {[%clk 0:00:28]}  Qf1 {[%clk 0:01:24]} 28. N1a2 {[%clk 0:00:24]}  Qxg2 {[%clk 0:01:19]} 29. f4 {[%clk 0:00:24]}  Qxh3 {[%clk 0:01:18]} 30. fxe5 {[%clk 0:00:23]}  Qxe3 {[%clk 0:01:18]} 0-1


[Site "https://www.chess.com"]

[Event "Titled Tuesday Blitz May 16 Late 2023"]
[White "Iturrizaga Bonelli, Eduardo"]
[Black "Makarian, Rudik"]
[WhiteFideId "3901211"]
[BlackFideId "44105681"]
[WhiteElo "2637"]
[BlackElo "2461"]
[Result "1-0"]
[Round "10"]
[TimeControl "180+2"]
[Date "2023.05.16"]
[WhiteClock "0:00:12"]
[BlackClock "0:00:00"]

1. c4 {[%clk 0:03:00]}  e6 {[%clk 0:02:59]} 2. g3 {[%clk 0:03:00]}  d5 {[%clk 0:03:00]} 3. d4 {[%clk 0:03:00]}  Nf6 {[%clk 0:03:01]} 4. Bg2 {[%clk 0:03:01]}  Bb4+ {[%clk 0:03:01]} 5. Nd2 {[%clk 0:03:00]}  O-O {[%clk 0:02:59]} 6. Nf3 {[%clk 0:02:59]}  a5 {[%clk 0:02:58]} 7. O-O {[%clk 0:02:57]}  a4 {[%clk 0:02:52]} 8. a3 {[%clk 0:02:57]}  Bxd2 {[%clk 0:02:49]} 9. Bxd2 {[%clk 0:02:56]}  Nc6 {[%clk 0:02:49]} 10. Rc1 {[%clk 0:02:56]}  Bd7 {[%clk 0:02:48]} 11. cxd5 {[%clk 0:02:54]}  exd5 {[%clk 0:02:45]} 12. Bg5 {[%clk 0:02:54]}  h6 {[%clk 0:02:44]} 13. Bxf6 {[%clk 0:02:55]}  Qxf6 {[%clk 0:02:44]} 14. e3 {[%clk 0:02:55]}  Qd6 {[%clk 0:02:37]} 15. Rc5 {[%clk 0:02:44]}  b6 {[%clk 0:02:29]} 16. Rc3 {[%clk 0:02:41]}  Na5 {[%clk 0:02:29]} 17. Ne5 {[%clk 0:02:41]}  Bf5 {[%clk 0:02:25]} 18. Qxa4 {[%clk 0:02:37]}  c5 {[%clk 0:02:00]} 19. Qd1 {[%clk 0:02:36]}  c4 {[%clk 0:01:54]} 20. Qa4 {[%clk 0:02:21]}  f6 {[%clk 0:01:43]} 21. Qb5 {[%clk 0:01:56]}  fxe5 {[%clk 0:01:14]} 22. Bxd5+ {[%clk 0:01:55]}  Kh8 {[%clk 0:01:11]} 23. Bxa8 {[%clk 0:01:54]}  Rxa8 {[%clk 0:01:05]} 24. Qxe5 {[%clk 0:01:55]}  Qxe5 {[%clk 0:01:04]} 25. dxe5 {[%clk 0:01:55]}  Kg8 {[%clk 0:00:56]} 26. Rd1 {[%clk 0:01:53]}  Bd3 {[%clk 0:00:54]} 27. f4 {[%clk 0:01:46]}  Kf7 {[%clk 0:00:46]} 28. Kf2 {[%clk 0:01:47]}  Ke6 {[%clk 0:00:46]} 29. Kf3 {[%clk 0:01:44]}  Rd8 {[%clk 0:00:43]} 30. Re1 {[%clk 0:01:31]}  b5 {[%clk 0:00:41]} 31. e4 {[%clk 0:01:22]}  Nb3 {[%clk 0:00:39]} 32. Ke3 {[%clk 0:01:18]}  Nc5 {[%clk 0:00:31]} 33. Rd1 {[%clk 0:01:17]}  Na4 {[%clk 0:00:14]} 34. Rcxd3 {[%clk 0:01:12]}  cxd3 {[%clk 0:00:13]} 35. Rxd3 {[%clk 0:01:13]}  Rxd3+ {[%clk 0:00:05]} 36. Kxd3 {[%clk 0:01:14]}  Nxb2+ {[%clk 0:00:05]} 37. Kd4 {[%clk 0:01:02]}  Nc4 {[%clk 0:00:04]} 38. f5+ {[%clk 0:00:52]}  Kd7 {[%clk 0:00:03]} 39. a4 {[%clk 0:00:53]}  Nxe5 {[%clk 0:00:02]} 40. axb5 {[%clk 0:00:34]}  Kd6 {[%clk 0:00:02]} 41. h3 {[%clk 0:00:27]}  Nd7 {[%clk 0:00:02]} 42. g4 {[%clk 0:00:25]}  Ne5 {[%clk 0:00:02]} 43. b6 {[%clk 0:00:18]}  Nc6+ {[%clk 0:00:03]} 44. Kc4 {[%clk 0:00:18]}  Ke5 {[%clk 0:00:03]} 45. Kd3 {[%clk 0:00:16]}  Kd6 {[%clk 0:00:01]} 46. Ke3 {[%clk 0:00:14]}  Kc5 {[%clk 0:00:02]} 47. b7 {[%clk 0:00:14]}  Kd6 {[%clk 0:00:02]} 48. Kf4 {[%clk 0:00:14]}  Kc7 {[%clk 0:00:02]} 49. g5 {[%clk 0:00:14]}  hxg5+ {[%clk 0:00:01]} 50. Kxg5 {[%clk 0:00:15]}  Ne5 {[%clk 0:00:01]} 51. f6 {[%clk 0:00:12]}  gxf6+ {[%clk 0:00:02]} 52. Kxf6 {[%clk 0:00:13]}  Nf3 {[%clk 0:00:00]} 53. e5 {[%clk 0:00:12]} 1-0


[Site "https://www.chess.com"]

[Event "Titled Tuesday Blitz May 16 Late 2023"]
[White "Rastbod, Ali"]
[Black "Pasti, Aron"]
[WhiteFideId "12567477"]
[BlackFideId "785857"]
[WhiteElo "2274"]
[BlackElo "2173"]
[Result "1-0"]
[Round "10"]
[TimeControl "180+2"]
[Date "2023.05.16"]
[WhiteClock "0:00:38"]
[BlackClock "0:00:00"]

1. e4 {[%clk 0:02:29]}  c5 {[%clk 0:02:38]} 2. Nf3 {[%clk 0:02:28]}  e6 {[%clk 0:02:38]} 3. g3 {[%clk 0:02:26]}  Nc6 {[%clk 0:02:35]} 4. Bg2 {[%clk 0:02:26]}  d6 {[%clk 0:02:33]} 5. O-O {[%clk 0:02:25]}  Nf6 {[%clk 0:02:33]} 6. Qe2 {[%clk 0:02:25]}  e5 {[%clk 0:02:25]} 7. c3 {[%clk 0:02:23]}  g6 {[%clk 0:02:22]} 8. h3 {[%clk 0:02:22]}  Bg7 {[%clk 0:02:22]} 9. Na3 {[%clk 0:02:15]}  O-O {[%clk 0:02:21]} 10. d3 {[%clk 0:02:15]}  Re8 {[%clk 0:02:20]} 11. Bg5 {[%clk 0:02:13]}  Rb8 {[%clk 0:02:18]} 12. Nc4 {[%clk 0:02:10]}  b5 {[%clk 0:02:18]} 13. Ne3 {[%clk 0:02:11]}  Be6 {[%clk 0:02:12]} 14. a4 {[%clk 0:02:10]}  b4 {[%clk 0:02:11]} 15. Nd2 {[%clk 0:02:07]}  bxc3 {[%clk 0:01:43]} 16. bxc3 {[%clk 0:02:08]}  Rb2 {[%clk 0:01:43]} 17. Qd1 {[%clk 0:02:08]}  Na5 {[%clk 0:01:37]} 18. Ndc4 {[%clk 0:01:48]}  Bxc4 {[%clk 0:01:33]} 19. dxc4 {[%clk 0:01:48]}  h6 {[%clk 0:01:20]} 20. Bxf6 {[%clk 0:01:48]}  Qxf6 {[%clk 0:01:20]} 21. Qd3 {[%clk 0:01:36]}  Qe6 {[%clk 0:01:15]} 22. h4 {[%clk 0:01:35]}  h5 {[%clk 0:01:14]} 23. Kh2 {[%clk 0:01:35]}  Bh6 {[%clk 0:01:14]} 24. Bh3 {[%clk 0:01:34]}  Qf6 {[%clk 0:01:12]} 25. Nd5 {[%clk 0:01:33]}  Qd8 {[%clk 0:01:02]} 26. Rab1 {[%clk 0:01:18]}  Rd2 {[%clk 0:01:02]} 27. Qf3 {[%clk 0:01:17]}  Bg7 {[%clk 0:00:51]} 28. Ne3 {[%clk 0:01:13]}  Rd3 {[%clk 0:00:43]} 29. Rfc1 {[%clk 0:01:12]}  Nxc4 {[%clk 0:00:21]} 30. Qe2 {[%clk 0:01:12]}  Rxe3 {[%clk 0:00:10]} 31. fxe3 {[%clk 0:01:07]}  Nb6 {[%clk 0:00:11]} 32. a5 {[%clk 0:01:07]}  Nd7 {[%clk 0:00:11]} 33. Bxd7 {[%clk 0:01:04]}  Qxd7 {[%clk 0:00:11]} 34. a6 {[%clk 0:01:04]}  Qa4 {[%clk 0:00:07]} 35. Qb5 {[%clk 0:00:59]}  Qxb5 {[%clk 0:00:05]} 36. Rxb5 {[%clk 0:01:00]}  Bh6 {[%clk 0:00:05]} 37. Re1 {[%clk 0:00:55]}  Re6 {[%clk 0:00:05]} 38. Rb7 {[%clk 0:00:55]}  Rf6 {[%clk 0:00:05]} 39. Kg2 {[%clk 0:00:55]}  g5 {[%clk 0:00:05]} 40. hxg5 {[%clk 0:00:51]}  Bxg5 {[%clk 0:00:05]} 41. Rxa7 {[%clk 0:00:52]}  Kg7 {[%clk 0:00:05]} 42. Rb7 {[%clk 0:00:52]}  d5 {[%clk 0:00:04]} 43. a7 {[%clk 0:00:51]}  Ra6 {[%clk 0:00:05]} 44. exd5 {[%clk 0:00:49]}  e4 {[%clk 0:00:05]} 45. Kh3 {[%clk 0:00:50]}  Ra2 {[%clk 0:00:04]} 46. Rf1 {[%clk 0:00:49]}  Bf6 {[%clk 0:00:03]} 47. d6 {[%clk 0:00:48]}  Kg6 {[%clk 0:00:02]} 48. d7 {[%clk 0:00:42]}  Be7 {[%clk 0:00:00]} 49. Rb8 {[%clk 0:00:38]} 1-0


[Site "https://www.chess.com"]

[Event "Titled Tuesday Blitz May 16 Late 2023"]
[White "Mirimanian, Hayk"]
[Black "D`Arruda, Ricardo D."]
[WhiteFideId "4700180"]
[BlackFideId "100692"]
[WhiteElo "2280"]
[BlackElo "2466"]
[Result "1-0"]
[Round "10"]
[TimeControl "180+2"]
[Date "2023.05.16"]
[WhiteClock "0:01:03"]
[BlackClock "0:01:16"]

1. e4 {[%clk 0:02:47]}  c5 {[%clk 0:02:33]} 2. Nf3 {[%clk 0:02:47]}  Nc6 {[%clk 0:02:34]} 3. d4 {[%clk 0:02:45]}  cxd4 {[%clk 0:02:34]} 4. Nxd4 {[%clk 0:02:46]}  e5 {[%clk 0:02:35]} 5. Nb5 {[%clk 0:02:43]}  a6 {[%clk 0:02:35]} 6. Nd6+ {[%clk 0:02:40]}  Bxd6 {[%clk 0:02:36]} 7. Qxd6 {[%clk 0:02:41]}  Qe7 {[%clk 0:02:36]} 8. Qd1 {[%clk 0:02:35]}  d6 {[%clk 0:02:36]} 9. Nc3 {[%clk 0:02:33]}  Nf6 {[%clk 0:02:36]} 10. Bg5 {[%clk 0:02:30]}  Be6 {[%clk 0:02:37]} 11. Nd5 {[%clk 0:02:29]}  Bxd5 {[%clk 0:02:37]} 12. exd5 {[%clk 0:02:28]}  Nb8 {[%clk 0:02:36]} 13. Be2 {[%clk 0:02:27]}  h6 {[%clk 0:02:37]} 14. Be3 {[%clk 0:02:24]}  O-O {[%clk 0:02:37]} 15. g4 {[%clk 0:02:18]}  e4 {[%clk 0:02:13]} 16. g5 {[%clk 0:01:52]}  hxg5 {[%clk 0:02:14]} 17. Qd2 {[%clk 0:01:52]}  Nh7 {[%clk 0:02:12]} 18. h4 {[%clk 0:01:49]}  gxh4 {[%clk 0:02:12]} 19. O-O-O {[%clk 0:01:47]}  g5 {[%clk 0:02:06]} 20. Rdg1 {[%clk 0:01:44]}  f6 {[%clk 0:02:05]} 21. Rxh4 {[%clk 0:01:42]}  Nd7 {[%clk 0:02:05]} 22. Bd4 {[%clk 0:01:32]}  Rf7 {[%clk 0:02:03]} 23. Qe3 {[%clk 0:01:30]}  Rg7 {[%clk 0:02:00]} 24. Rxe4 {[%clk 0:01:26]}  Ne5 {[%clk 0:01:59]} 25. Bg4 {[%clk 0:01:21]}  Nf8 {[%clk 0:01:55]} 26. f4 {[%clk 0:01:18]}  gxf4 {[%clk 0:01:54]} 27. Rxf4 {[%clk 0:01:16]}  Re8 {[%clk 0:01:50]} 28. Bh5 {[%clk 0:01:12]}  Nd3+ {[%clk 0:01:23]} 29. Qxd3 {[%clk 0:01:06]}  Rxg1+ {[%clk 0:01:20]} 30. Bxg1 {[%clk 0:01:06]}  Qe1+ {[%clk 0:01:16]} 31. Qd1 {[%clk 0:01:03]} 1-0


[Site "https://www.chess.com"]

[Event "Titled Tuesday Blitz May 16 Late 2023"]
[White "Makridis, Dimitrios"]
[Black "Bryakin, Mikhail"]
[WhiteFideId "25864475"]
[BlackFideId "4165314"]
[WhiteElo "2277"]
[BlackElo "2467"]
[Result "1-0"]
[Round "10"]
[TimeControl "180+2"]
[Date "2023.05.16"]
[WhiteClock "0:01:09"]
[BlackClock "0:00:00"]

1. e4 {[%clk 0:02:53]}  e6 {[%clk 0:02:54]} 2. d4 {[%clk 0:02:36]}  d5 {[%clk 0:02:55]} 3. Nd2 {[%clk 0:02:35]}  Nf6 {[%clk 0:02:53]} 4. e5 {[%clk 0:02:29]}  Nfd7 {[%clk 0:02:50]} 5. c3 {[%clk 0:02:29]}  c5 {[%clk 0:02:50]} 6. Bd3 {[%clk 0:02:29]}  b6 {[%clk 0:02:49]} 7. Ne2 {[%clk 0:02:12]}  Ba6 {[%clk 0:02:48]} 8. Bxa6 {[%clk 0:02:10]}  Nxa6 {[%clk 0:02:49]} 9. O-O {[%clk 0:02:09]}  Be7 {[%clk 0:02:49]} 10. f4 {[%clk 0:02:07]}  g6 {[%clk 0:02:49]} 11. Ng3 {[%clk 0:02:07]}  h5 {[%clk 0:02:49]} 12. h3 {[%clk 0:02:03]}  Nab8 {[%clk 0:02:41]} 13. Qf3 {[%clk 0:01:44]}  cxd4 {[%clk 0:02:36]} 14. cxd4 {[%clk 0:01:44]}  Nc6 {[%clk 0:02:36]} 15. Nb3 {[%clk 0:01:43]}  h4 {[%clk 0:02:35]} 16. f5 {[%clk 0:01:38]}  gxf5 {[%clk 0:02:21]} 17. Nxf5 {[%clk 0:01:37]}  exf5 {[%clk 0:01:52]} 18. Qxf5 {[%clk 0:01:38]}  Rf8 {[%clk 0:01:32]} 19. Bh6 {[%clk 0:01:36]}  Qc7 {[%clk 0:01:14]} 20. Bxf8 {[%clk 0:01:34]}  Nxf8 {[%clk 0:01:15]} 21. Qxf7+ {[%clk 0:01:28]}  Kd8 {[%clk 0:01:15]} 22. Qxd5+ {[%clk 0:01:24]}  Qd7 {[%clk 0:01:14]} 23. Qe4 {[%clk 0:01:23]}  Rc8 {[%clk 0:01:06]} 24. d5 {[%clk 0:01:19]}  Nb4 {[%clk 0:00:40]} 25. d6 {[%clk 0:01:18]}  Ne6 {[%clk 0:00:25]} 26. dxe7+ {[%clk 0:01:18]}  Qxe7 {[%clk 0:00:26]} 27. Rad1+ {[%clk 0:01:15]}  Kc7 {[%clk 0:00:27]} 28. Rd6 {[%clk 0:01:14]}  Kb8 {[%clk 0:00:00]} 29. Qxb4 {[%clk 0:01:09]} 1-0


[Site "https://www.chess.com"]

[Event "Titled Tuesday Blitz May 16 Late 2023"]
[White "Goltsev, Dmitry"]
[Black "Averjanov, Alexey"]
[WhiteFideId "24176710"]
[BlackFideId "14109867"]
[WhiteElo "2356"]
[BlackElo "2786"]
[Result "1/2-1/2"]
[Round "10"]
[TimeControl "180+2"]
[Date "2023.05.16"]
[WhiteClock "0:00:31"]
[BlackClock "0:00:35"]

1. e4 {[%clk 0:03:00]}  c6 {[%clk 0:02:59]} 2. d4 {[%clk 0:03:00]}  d5 {[%clk 0:03:00]} 3. Nc3 {[%clk 0:03:00]}  dxe4 {[%clk 0:03:00]} 4. Nxe4 {[%clk 0:03:01]}  Bf5 {[%clk 0:03:00]} 5. Ng3 {[%clk 0:03:00]}  Bg6 {[%clk 0:03:00]} 6. Nh3 {[%clk 0:03:01]}  e6 {[%clk 0:03:00]} 7. Nf4 {[%clk 0:02:59]}  Bd6 {[%clk 0:03:00]} 8. c3 {[%clk 0:03:00]}  Qc7 {[%clk 0:02:52]} 9. Qf3 {[%clk 0:03:00]}  Ne7 {[%clk 0:02:45]} 10. h4 {[%clk 0:02:58]}  h6 {[%clk 0:02:41]} 11. Nxg6 {[%clk 0:02:52]}  Nxg6 {[%clk 0:02:40]} 12. Nh5 {[%clk 0:02:51]}  Rg8 {[%clk 0:02:31]} 13. Bd3 {[%clk 0:02:44]}  Nd7 {[%clk 0:02:17]} 14. Qg4 {[%clk 0:02:41]}  O-O-O {[%clk 0:02:14]} 15. Bxg6 {[%clk 0:02:38]}  fxg6 {[%clk 0:02:15]} 16. Qxg6 {[%clk 0:02:39]}  e5 {[%clk 0:02:13]} 17. O-O {[%clk 0:02:30]}  exd4 {[%clk 0:02:09]} 18. cxd4 {[%clk 0:02:31]}  Kb8 {[%clk 0:02:07]} 19. Qxd6 {[%clk 0:02:26]}  Qxd6 {[%clk 0:02:03]} 20. Bf4 {[%clk 0:02:26]}  Nf6 {[%clk 0:02:01]} 21. Bxd6+ {[%clk 0:02:25]}  Rxd6 {[%clk 0:02:02]} 22. Nxf6 {[%clk 0:02:26]}  gxf6 {[%clk 0:02:00]} 23. Rad1 {[%clk 0:02:25]}  Rgd8 {[%clk 0:01:57]} 24. Rfe1 {[%clk 0:02:24]}  Rxd4 {[%clk 0:01:55]} 25. Rxd4 {[%clk 0:02:25]}  Rxd4 {[%clk 0:01:55]} 26. g3 {[%clk 0:02:18]}  Kc7 {[%clk 0:01:54]} 27. Re8 {[%clk 0:02:10]}  Rd2 {[%clk 0:01:50]} 28. Re7+ {[%clk 0:02:07]}  Kb6 {[%clk 0:01:36]} 29. Re6 {[%clk 0:02:06]}  Rxb2 {[%clk 0:01:31]} 30. Rxf6 {[%clk 0:02:07]}  h5 {[%clk 0:01:30]} 31. g4 {[%clk 0:01:53]}  hxg4 {[%clk 0:01:27]} 32. h5 {[%clk 0:01:54]}  Rxa2 {[%clk 0:01:20]} 33. h6 {[%clk 0:01:52]}  Ra5 {[%clk 0:01:16]} 34. Kg2 {[%clk 0:01:48]}  Rh5 {[%clk 0:01:13]} 35. Kg3 {[%clk 0:01:48]}  a5 {[%clk 0:01:11]} 36. Kxg4 {[%clk 0:01:48]}  Rh2 {[%clk 0:01:10]} 37. Kg5 {[%clk 0:01:42]}  a4 {[%clk 0:01:09]} 38. f4 {[%clk 0:01:36]}  a3 {[%clk 0:01:07]} 39. Re6 {[%clk 0:01:36]}  a2 {[%clk 0:01:04]} 40. Re1 {[%clk 0:01:36]}  Kc5 {[%clk 0:01:00]} 41. f5 {[%clk 0:01:32]}  Rg2+ {[%clk 0:00:54]} 42. Kf6 {[%clk 0:01:32]}  b5 {[%clk 0:00:51]} 43. h7 {[%clk 0:01:18]}  Rh2 {[%clk 0:00:49]} 44. Kg7 {[%clk 0:01:18]}  Rg2+ {[%clk 0:00:45]} 45. Kf7 {[%clk 0:01:16]}  Rh2 {[%clk 0:00:45]} 46. Kg7 {[%clk 0:01:10]}  Rg2+ {[%clk 0:00:45]} 47. Kh8 {[%clk 0:01:09]}  b4 {[%clk 0:00:43]} 48. f6 {[%clk 0:01:08]}  Kd6 {[%clk 0:00:41]} 49. f7 {[%clk 0:01:06]}  a1=Q+ {[%clk 0:00:38]} 50. Rxa1 {[%clk 0:00:54]}  Ke7 {[%clk 0:00:39]} 51. Rg1 {[%clk 0:00:32]}  Rxg1 {[%clk 0:00:35]} 52. f8=Q+ {[%clk 0:00:31]}  Kxf8 {[%clk 0:00:35]} 1/2-1/2


[Site "https://www.chess.com"]

[Event "Titled Tuesday Blitz May 16 Late 2023"]
[White "Sieciechowicz, Marcin"]
[Black "Alex_Sahakyan2006"]
[WhiteFideId "1130170"]
[WhiteElo "2302"]
[BlackElo "2709"]
[Result "1-0"]
[Round "10"]
[TimeControl "180+2"]
[Date "2023.05.16"]
[WhiteClock "0:00:06"]
[BlackClock "0:00:00"]

1. d4 {[%clk 0:03:00]}  Nf6 {[%clk 0:02:58]} 2. c4 {[%clk 0:03:01]}  c5 {[%clk 0:02:56]} 3. d5 {[%clk 0:03:01]}  b5 {[%clk 0:02:57]} 4. Nf3 {[%clk 0:03:01]}  g6 {[%clk 0:02:55]} 5. cxb5 {[%clk 0:03:00]}  a6 {[%clk 0:02:54]} 6. b6 {[%clk 0:03:01]}  d6 {[%clk 0:02:49]} 7. Nc3 {[%clk 0:03:00]}  Nbd7 {[%clk 0:02:48]} 8. a4 {[%clk 0:03:00]}  Nxb6 {[%clk 0:02:47]} 9. a5 {[%clk 0:03:00]}  Nbd7 {[%clk 0:02:47]} 10. e4 {[%clk 0:03:01]}  Bg7 {[%clk 0:02:46]} 11. Be2 {[%clk 0:03:01]}  O-O {[%clk 0:02:46]} 12. h3 {[%clk 0:03:00]}  Rb8 {[%clk 0:02:46]} 13. O-O {[%clk 0:03:00]}  Ne8 {[%clk 0:02:43]} 14. Nd2 {[%clk 0:02:59]}  Nc7 {[%clk 0:02:43]} 15. Nc4 {[%clk 0:02:58]}  Nb5 {[%clk 0:02:43]} 16. Na4 {[%clk 0:02:59]}  Nd4 {[%clk 0:02:42]} 17. Nab6 {[%clk 0:02:58]}  Nxb6 {[%clk 0:02:39]} 18. Nxb6 {[%clk 0:02:57]}  Rxb6 {[%clk 0:02:39]} 19. axb6 {[%clk 0:02:57]}  Qxb6 {[%clk 0:02:40]} 20. Bc4 {[%clk 0:02:49]}  f5 {[%clk 0:02:36]} 21. exf5 {[%clk 0:02:44]}  Bxf5 {[%clk 0:02:34]} 22. Rxa6 {[%clk 0:02:40]}  Qb4 {[%clk 0:02:31]} 23. Qa4 {[%clk 0:02:36]}  Qb8 {[%clk 0:02:15]} 24. Ra7 {[%clk 0:02:33]}  Qc8 {[%clk 0:01:32]} 25. Qa6 {[%clk 0:01:45]}  Qe8 {[%clk 0:01:09]} 26. Qb7 {[%clk 0:01:45]}  Kf7 {[%clk 0:00:44]} 27. Bg5 {[%clk 0:01:27]}  Bf6 {[%clk 0:00:43]} 28. f4 {[%clk 0:01:24]}  Qd8 {[%clk 0:00:28]} 29. Re1 {[%clk 0:01:09]}  Re8 {[%clk 0:00:20]} 30. Kf2 {[%clk 0:00:53]}  Nc2 {[%clk 0:00:17]} 31. Re2 {[%clk 0:00:44]}  Nd4 {[%clk 0:00:16]} 32. Rd2 {[%clk 0:00:38]}  h6 {[%clk 0:00:14]} 33. Bxf6 {[%clk 0:00:28]}  Kxf6 {[%clk 0:00:15]} 34. Bd3 {[%clk 0:00:18]}  Bc8 {[%clk 0:00:07]} 35. Qc7 {[%clk 0:00:15]}  Qxc7 {[%clk 0:00:06]} 36. Rxc7 {[%clk 0:00:16]}  g5 {[%clk 0:00:07]} 37. fxg5+ {[%clk 0:00:13]}  hxg5 {[%clk 0:00:08]} 38. Bc4 {[%clk 0:00:08]}  Bf5 {[%clk 0:00:06]} 39. b4 {[%clk 0:00:08]}  Ke5 {[%clk 0:00:02]} 40. bxc5 {[%clk 0:00:07]}  dxc5 {[%clk 0:00:03]} 41. Rxc5 {[%clk 0:00:08]}  Kd6 {[%clk 0:00:03]} 42. Ra5 {[%clk 0:00:07]}  Nc2 {[%clk 0:00:01]} 43. Bd3 {[%clk 0:00:05]}  Bxd3 {[%clk 0:00:00]} 44. Rxd3 {[%clk 0:00:06]} 1-0


[Site "https://www.chess.com"]

[Event "Titled Tuesday Blitz May 16 Late 2023"]
[White "Hambleton, Aman"]
[Black "Denishev, Marat"]
[WhiteFideId "2606577"]
[BlackFideId "24131563"]
[WhiteElo "2511"]
[BlackElo "2311"]
[Result "0-1"]
[Round "10"]
[TimeControl "180+2"]
[Date "2023.05.16"]
[WhiteClock "0:00:13"]
[BlackClock "0:01:20"]

1. c4 {[%clk 0:03:00]}  Nf6 {[%clk 0:02:58]} 2. Nc3 {[%clk 0:02:59]}  c5 {[%clk 0:02:58]} 3. Nf3 {[%clk 0:02:57]}  e6 {[%clk 0:02:58]} 4. d4 {[%clk 0:02:55]}  cxd4 {[%clk 0:02:59]} 5. Nxd4 {[%clk 0:02:56]}  b6 {[%clk 0:02:59]} 6. e4 {[%clk 0:02:55]}  d6 {[%clk 0:02:59]} 7. Be3 {[%clk 0:02:46]}  Bb7 {[%clk 0:02:59]} 8. f3 {[%clk 0:02:46]}  a6 {[%clk 0:02:57]} 9. Qd2 {[%clk 0:02:39]}  Nbd7 {[%clk 0:02:56]} 10. O-O-O {[%clk 0:02:33]}  Be7 {[%clk 0:02:52]} 11. Kb1 {[%clk 0:02:33]}  Rc8 {[%clk 0:02:51]} 12. Rc1 {[%clk 0:02:20]}  O-O {[%clk 0:02:50]} 13. Be2 {[%clk 0:02:20]}  Ne5 {[%clk 0:02:34]} 14. b3 {[%clk 0:02:19]}  d5 {[%clk 0:01:50]} 15. f4 {[%clk 0:02:12]}  Nxc4 {[%clk 0:01:31]} 16. bxc4 {[%clk 0:02:08]}  dxc4 {[%clk 0:01:32]} 17. Bf3 {[%clk 0:01:39]}  b5 {[%clk 0:01:31]} 18. e5 {[%clk 0:01:35]}  Nd5 {[%clk 0:01:27]} 19. Nxd5 {[%clk 0:00:50]}  Bxd5 {[%clk 0:01:28]} 20. Ka1 {[%clk 0:00:17]}  Ba3 {[%clk 0:01:23]} 21. Rcd1 {[%clk 0:00:16]}  c3 {[%clk 0:01:21]} 22. Qc2 {[%clk 0:00:15]}  Bb2+ {[%clk 0:01:21]} 23. Kb1 {[%clk 0:00:15]}  Bxa2+ {[%clk 0:01:19]} 24. Kxa2 {[%clk 0:00:13]}  Qa5+ {[%clk 0:01:20]} 0-1


[Site "https://www.chess.com"]